bitfinex/quotes_ETHUSD_20251215
["timestamp","ask_amount","ask_price","bid_price","bid_amount"]
[1765783187469,10.62044473,3130.5,3130.4,0.0234]
[1765783190376,10.62044473,3130.5,3130.4,0.0458]
[1765783191183,10.62044473,3130.5,3130.4,0.0234]
[1765783196092,11.07654473,3130.5,3130.4,0.001]
[1765783196274,12.94597681,3130.5,3130.4,0.001]
[1765783196453,13.39597681,3130.5,3130.4,0.001]
[1765783196790,12.94597681,3130.5,3130.4,0.001]
[1765783199950,12.48987681,3130.5,3130.4,0.001]
[1765783200153,6.92106684,3130.5,3130.4,0.0234]
[1765783200385,0.59206684,3130.5,3130.4,0.0234]
[1765783200590,1.09706684,3130.5,3130.4,0.0458]
[1765783201280,1.09706684,3130.5,3130.4,0.0234]
[1765783202094,1.09706684,3130.5,3130.4,0.0458]
[1765783205369,0.01159155,3130.5,3130.4,0.0458]
[1765783205566,0.51659155,3130.5,3130.4,0.0458]
[1765783207902,0.51659155,3130.5,3130.4,0.0234]
[1765783208202,0.51659155,3130.5,3130.4,0.0458]
[1765783212905,0.51659155,3130.5,3130.4,0.0234]
[1765783213202,0.51659155,3130.5,3130.4,0.0458]
[1765783222239,0.51659155,3130.5,3130.4,0.0234]
[1765783228027,0.51659155,3130.5,3130.4,0.001]
[1765783229022,0.51659155,3130.5,3130.4,0.0234]
[1765783229739,0.01159155,3130.5,3130.4,0.0458]
[1765783230122,0.51659155,3130.5,3130.4,0.0458]
[1765783231623,0.51659155,3130.5,3130.4,0.0234]
[1765783231824,0.51659155,3130.5,3130.4,0.0458]
[1765783232620,0.51659155,3130.5,3130.4,0.0234]
[1765783233309,0.51659155,3130.5,3130.4,0.0458]
[1765783233923,0.51659155,3130.5,3130.4,0.0234]
[1765783235509,1.01559155,3130.5,3130.4,0.001]
[1765783235827,4.69706944,3130.5,3130.4,0.001]
[1765783236022,25.4862274,3130.5,3130.4,0.001]
[1765783236600,7.88642751,3130.5,3130.4,0.0234]
[1765783236821,7.88642751,3130.5,3130.4,0.0458]
[1765783236822,1.09706684,3130.5,3130.4,0.0458]
[1765783237028,1.09706684,3130.5,3130.4,0.0234]
[1765783241035,5.3096198,3130.5,3130.4,0.001]
[1765783241202,5.27754473,3130.5,3130.4,0.001]
[1765783241402,5.27754473,3130.5,3130.4,0.0234]
[1765783241403,1.09706684,3130.5,3130.4,0.0234]
[1765783242419,0.59206684,3130.5,3130.4,0.0234]
[1765783242726,1.09706684,3130.5,3130.4,0.0234]
[1765783244444,4.29144473,3130.5,3130.4,0.0234]
[1765783244610,4.72154836,3130.5,3130.4,0.001]
[1765783244814,5.22054836,3130.5,3130.4,0.001]
[1765783247136,5.70764836,3130.5,3130.4,0.001]
[1765783247817,2.02617047,3130.5,3130.4,0.001]
[1765783249052,1.52717047,3130.5,3130.4,0.0234]
[1765783249239,1.09706684,3130.5,3130.4,0.0234]
[1765783252049,1.09706684,3130.5,3130.4,0.001]
[1765783252647,1.09706684,3130.5,3130.4,0.0234]
[1765783252820,1.09706684,3130.5,3130.4,0.001]
[1765783253021,1.09706684,3130.5,3130.4,0.0234]
[1765783258956,0.59206684,3130.5,3130.4,0.0234]
[1765783259146,1.09706684,3130.5,3130.4,0.0234]
[1765783260529,0.59206684,3130.5,3130.4,0.0234]
[1765783260725,0.002,3130.5,3130.4,0.0234]
[1765783260931,0.002,3130.5,3130.4,3.24027993]
[1765783261130,0.002,3130.5,3130.4,3.88696183]
[1765783261442,0.002,3130.5,3130.4,3.86456183]
[1765783261832,0.002,3130.5,3130.4,3.88696183]
[1765783262629,0.002,3130.5,3130.4,3.86456183]
[1765783262851,0.002,3130.5,3130.4,3.88696183]
[1765783266555,0.002,3130.5,3130.4,3.86456183]
[1765783267476,0.002,3130.5,3130.4,3.88696183]
[1765783268478,0.002,3130.5,3130.4,3.86456183]
[1765783268665,0.002,3130.5,3130.4,3.88696183]
[1765783269377,0.002,3130.5,3130.4,0.001]
[1765783269378,0.9541,3130.5,3130.4,0.001]
[1765783284615,0.507,3130.5,3130.4,0.0234]
[1765783284904,0.507,3130.5,3130.4,0.0458]
[1765783285783,0.002,3130.5,3130.4,0.0458]
[1765783287000,0.002,3130.5,3130.4,0.0234]
[1765783287322,0.002,3130.5,3130.4,3.24027993]
[1765783287606,0.002,3130.5,3130.4,3.88377497]
[1765783289302,0.002,3130.5,3130.4,3.86137497]
[1765783291086,0.002,3130.5,3130.4,3.88377497]
[1765783292612,0.002,3130.5,3130.4,3.86137497]
[1765783292819,0.002,3130.5,3130.4,3.21787993]
[1765783293322,0.002,3130.5,3130.4,0.0234]
[1765783297700,0.4616,3130.5,3130.4,0.001]
[1765783297904,0.922,3130.5,3130.4,0.001]
[1765783298793,0.922,3130.5,3130.4,3.24027993]
[1765783298794,0.002,3130.5,3130.4,3.24027993]
[1765783299094,0.002,3130.5,3130.4,4.76618528]
[1765783299512,0.002,3130.5,3130.4,4.89409216]
[1765783304431,0.002,3130.5,3130.4,4.92603695]
[1765783304623,0.002,3130.5,3130.4,4.89409216]
[1765783307235,0.002,3130.5,3130.4,4.76618528]
[1765783308230,0.002,3130.5,3130.4,4.74378528]
[1765783308435,0.002,3130.5,3130.4,4.76618528]
[1765783312102,0.01159155,3130.5,3130.4,4.74378528]
[1765783312310,0.002,3130.5,3130.4,7.65236931]
[1765783312624,0.002,3130.5,3130.4,7.78026678]
[1765783313019,0.922,3130.5,3130.4,0.001]
[1765783316945,4.11637789,3130.5,3130.4,0.001]
[1765783317234,4.89890107,3130.5,3130.4,0.001]
[1765783318439,1.70452318,3130.5,3130.4,0.001]
[1765783319943,0.922,3130.5,3130.4,0.001]
[1765783321131,1.427,3130.5,3130.4,0.001]
[1765783321669,0.922,3130.5,3130.4,0.001]
[1765783321973,1.4402,3130.5,3130.4,0.001]
[1765783322760,0.507,3130.5,3130.4,0.0234]
[1765783322966,0.002,3130.5,3130.4,0.0234]
[1765783323167,0.507,3130.5,3130.4,0.0234]
[1765783323472,0.002,3130.5,3130.4,0.0234]
[1765783324170,0.002,3130.5,3130.4,0.0458]
[1765783324445,0.002,3130.5,3130.4,0.0234]
[1765783324642,0.002,3130.5,3130.4,3.24027993]
[1765783324841,0.002,3130.5,3130.4,3.88377627]
[1765783329453,0.002,3130.5,3130.4,8.29586565]
[1765783331466,0.002,3130.5,3130.4,3.88377627]
[1765783336857,0.4772,3130.5,3130.4,0.64449634]
[1765783337020,0.4772,3130.5,3130.4,0.001]
[1765783337664,0.002,3130.5,3130.4,0.001]
[1765783338229,0.002,3130.5,3130.4,3.19547993]
[1765783338422,0.002,3130.5,3130.4,0.0234]
[1765783338857,0.9508,3130.5,3130.4,0.001]
[1765783339096,0.002,3130.5,3130.4,0.001]
[1765783339459,0.002,3130.5,3130.4,3.21787993]
[1765783339659,0.002,3130.5,3130.4,3.85913514]
[1765783341069,0.002,3130.5,3130.4,3.88153514]
[1765783341253,0.002,3130.5,3130.4,3.85913514]
[1765783341458,0.002,3130.5,3130.4,3.21787993]
[1765783342791,0.002,3130.5,3130.4,3.85270001]
[1765783342997,0.002,3130.5,3130.4,3.94864574]
[1765783343702,0.002,3130.5,3130.4,4.38609453]
[1765783347121,0.49169155,3131.7,3130.5,0.98597929]
[1765783347278,0.00959155,3131.3,3130.9,4.40946144]
[1765783347468,0.00959155,3131.3,3130.9,4.43186144]
[1765783347669,0.00959155,3131.3,3131.2,0.0224]
[1765783350021,0.00959155,3131.3,3131.2,3.21606377]
[1765783350316,0.00959155,3131.3,3131.2,3.85928779]
[1765783353201,0.002,3131.3,3131.2,8.26874923]
[1765783360614,0.95,3131.3,3131.2,3.83688779]
[1765783360786,0.95,3131.3,3131.2,3.19366377]
[1765783361518,0.4586,3131.3,3131.2,3.19366377]
[1765783361723,0.95,3131.3,3131.2,3.19366377]
[1765783363017,0.4586,3131.3,3131.0,6.38764287]
[1765783364422,0.50099155,3131.2,3131.0,3.1937751]
[1765783364584,0.50099155,3131.2,3131.1,0.63877032]
[1765783364786,0.00959155,3131.2,3131.1,0.63877032]
[1765783365083,0.00959155,3131.2,3131.1,0.66117032]
[1765783365287,0.00959155,3131.2,3131.1,3.85493608]
[1765783366712,0.00959155,3131.2,3131.1,3.83253608]
[1765783366713,0.95759155,3131.2,3131.1,3.83253608]
[1765783367212,0.46619155,3131.2,3131.1,3.83253608]
[1765783367616,0.95759155,3131.2,3130.6,1.58250544]
[1765783367783,0.46619155,3131.0,3130.7,6.38831952]
[1765783368188,0.00959155,3130.8,3130.7,3.77462099]
[1765783369197,0.50099155,3131.0,3130.7,6.96879481]
[1765783369785,0.50099155,3131.0,3130.7,6.38831952]
[1765783369985,0.50099155,3131.0,3130.7,7.46819762]
[1765783370514,0.00959155,3131.0,3130.7,7.46819762]
[1765783371132,0.50099155,3131.0,3130.7,7.46819762]
[1765783372002,0.00959155,3131.0,3130.7,7.46819762]
[1765783373886,0.50099155,3131.0,3130.7,7.46819762]
[1765783374086,0.00959155,3130.8,3130.7,4.2740238]
[1765783375104,0.00959155,3130.8,3130.7,4.2964238]
[1765783379127,0.00959155,3131.0,3130.7,7.49059762]
[1765783379430,0.00959155,3131.0,3130.9,0.0224]
[1765783379947,0.00959155,3131.0,3130.8,0.74905976]
[1765783381527,0.49069155,3131.2,3130.9,6.41033956]
[1765783381528,0.00959155,3131.2,3130.9,6.41033956]
[1765783381829,0.01159155,3131.3,3131.1,0.0224]
[1765783382028,0.01159155,3131.3,3131.2,0.0224]
[1765783383605,0.01159155,3131.3,3131.2,3.21606377]
[1765783383804,0.49139155,3131.3,3131.2,3.19366377]
[1765783384006,0.97249155,3131.3,3131.2,3.19366377]
[1765783384199,0.002,3131.3,3131.2,3.88675126]
[1765783384399,0.002,3131.3,3131.2,3.90915126]
[1765783385230,0.002,3131.3,3131.2,4.31465526]
[1765783385736,0.002,3131.3,3131.2,4.41056419]
[1765783386321,0.002,3131.3,3131.2,4.44250082]
[1765783386713,0.002,3131.3,3131.2,4.41056419]
[1765783386912,0.002,3131.3,3131.2,4.99103948]
[1765783391445,0.002,3131.3,3131.2,9.39680841]
[1765783394344,0.002,3131.3,3131.2,4.56313548]
[1765783394976,0.002,3131.3,3131.2,4.58553548]
[1765783395142,0.002,3131.7,3131.6,4.40576893]
[1765783395343,0.002,3131.7,3131.6,5.44922111]
[1765783395529,0.4818,3131.7,3131.6,8.62007695]
[1765783397018,0.002,3131.7,3131.6,8.62007695]
[1765783397234,0.002,3131.7,3131.6,8.64247695]
[1765783397942,0.4818,3131.7,3131.6,8.62007695]
[1765783398336,0.9629,3131.7,3131.6,8.62007695]
[1765783398945,0.4818,3131.7,3131.6,8.62007695]
[1765783399143,0.002,3131.7,3131.6,8.62007695]
[1765783400721,0.4818,3131.7,3131.6,8.62007695]
[1765783400921,0.9629,3131.7,3131.6,8.62007695]
[1765783401121,0.4818,3131.7,3131.6,8.62007695]
[1765783406461,0.9629,3131.7,3131.6,8.62007695]
[1765783409644,0.4818,3131.7,3131.6,8.62007695]
[1765783410451,0.002,3131.7,3131.6,8.64247695]
[1765783411646,0.002,3131.7,3131.6,8.66487695]
[1765783411959,0.002,3131.7,3131.6,8.64247695]
[1765783413447,0.4863,3131.7,3131.6,8.62007695]
[1765783414085,0.002,3131.7,3131.6,8.62007695]
[1765783414493,0.9619,3131.7,3131.6,8.62007695]
[1765783414888,0.9619,3131.7,3131.6,3.63383273]
[1765783415065,0.9619,3131.7,3131.6,3.19325584]
[1765783420481,0.9619,3131.7,3131.3,0.001]
[1765783420700,0.49389155,3131.4,3131.3,0.001]
[1765783421074,0.96949155,3131.4,3131.3,0.001]
[1765783430884,4.16295134,3131.4,3131.3,0.001]
[1765783431103,4.94993305,3131.4,3131.3,0.001]
[1765783434280,21.04018205,3131.4,3131.3,0.001]
[1765783435279,24.12803793,3131.4,3131.3,0.001]
[1765783435893,24.70851322,3131.4,3131.3,0.001]
[1765783436407,25.08795422,3131.4,3131.3,0.001]
[1765783437397,35.65832422,3131.4,3131.3,0.001]
[1765783438186,19.12173522,3131.4,3131.3,0.001]
[1765783438397,18.77496622,3131.4,3131.3,0.001]
[1765783439279,5.65832422,3131.4,3131.3,0.001]
[1765783439479,5.45393305,3131.4,3131.3,0.001]
[1765783442810,5.45593305,3131.4,3131.3,0.001]
[1765783443513,4.95193305,3131.4,3131.3,0.001]
[1765783443718,5.45593305,3131.4,3131.3,0.001]
[1765783446787,24.46183405,3131.4,3131.3,0.001]
[1765783447419,18.68624005,3131.4,3131.3,0.001]
[1765783447782,33.68665105,3131.4,3131.3,0.001]
[1765783448118,33.46211805,3131.4,3131.3,0.001]
[1765783448283,32.95811805,3131.4,3131.3,0.001]
[1765783448490,8.46967405,3131.4,3131.3,0.001]
[1765783448807,8.41193305,3131.4,3131.3,0.001]
[1765783449006,5.45593305,3131.4,3131.3,0.001]
[1765783449207,8.41193305,3131.4,3131.3,0.001]
[1765783449721,5.45593305,3131.4,3131.3,0.001]
[1765783450089,10.28383905,3131.4,3131.3,0.001]
[1765783451998,5.45593305,3131.4,3131.3,0.001]
[1765783452534,2.26247326,3131.4,3131.3,0.001]
[1765783452698,5.45593305,3131.4,3131.3,0.001]
[1765783457712,11.78493305,3131.4,3131.3,0.001]
[1765783461009,11.28093305,3131.4,3131.3,0.001]
[1765783461224,11.78493305,3131.4,3131.3,0.001]
[1765783462032,11.30933305,3131.4,3131.3,0.001]
[1765783462332,11.76483305,3131.4,3131.3,0.001]
[1765783463330,0.002,3131.4,3131.3,0.0234]
[1765783463506,0.002,3131.4,3131.3,0.0458]
[1765783466939,0.002,3131.4,3131.3,0.0234]
[1765783473147,0.002,3131.4,3131.3,0.0458]
[1765783475548,0.002,3131.4,3131.3,3.23936177]
[1765783475723,0.002,3131.4,3131.3,3.88267067]
[1765783482620,0.002,3131.4,3131.3,3.88267067]
[1765783488555,0.002,3131.4,3131.3,3.86027067]
[1765783488855,0.002,3131.4,3131.3,3.88267067]
[1765783491463,0.002,3131.4,3131.3,3.86027067]
[1765783500775,0.9496,3131.4,3131.3,0.6443089]
[1765783500976,0.9496,3131.4,3131.3,0.001]
[1765783501170,0.4925,3131.4,3131.3,0.001]
[1765783501474,0.002,3131.4,3131.3,0.001]
[1765783502763,0.002,3131.4,3131.3,3.21696177]
[1765783503660,0.002,3131.4,3131.3,3.23936177]
[1765783503962,0.002,3131.4,3131.3,3.86027198]
[1765783504170,0.002,3131.4,3131.3,3.88267198]
[1765783504546,0.002,3131.4,3131.3,4.38667198]
[1765783504752,0.002,3131.4,3131.3,4.41860759]
[1765783504998,0.002,3131.4,3131.3,4.38667198]
[1765783505277,0.002,3131.4,3131.3,4.36427198]
[1765783505576,0.002,3131.4,3131.3,3.86027198]
[1765783505876,0.002,3131.4,3131.3,3.88267198]
[1765783506244,0.002,3131.4,3131.3,8.29193012]
[1765783506649,0.002,3131.4,3131.3,3.88267198]
[1765783506845,0.002,3131.4,3131.3,4.38667198]
[1765783512178,0.002,3131.4,3131.3,4.36427198]
[1765783514796,0.002,3131.4,3131.3,4.38667198]
[1765783515468,0.002,3131.4,3131.3,8.79310267]
[1765783517098,0.002,3131.4,3131.3,4.38667198]
[1765783517785,0.002,3131.4,3131.3,4.96714727]
[1765783520394,0.002,3131.4,3131.3,5.09499405]
[1765783520711,0.002,3131.4,3131.3,5.53243366]
[1765783520906,0.002,3131.4,3131.3,5.98332636]
[1765783522373,0.002,3131.7,3131.6,9.79884067]
[1765783522672,0.002,3131.7,3131.6,6.49783085]
[1765783522815,0.002,3131.7,3131.6,5.43720998]
[1765783523115,0.002,3131.7,3131.6,5.56503634]
[1765783523316,0.002,3131.7,3131.6,5.13713234]
[1765783524311,0.002,3131.7,3131.6,8.33038818]
[1765783526424,0.002,3131.7,3131.6,8.30798818]
[1765783526425,0.4925,3131.7,3131.6,8.30798818]
[1765783526630,0.4925,3131.7,3131.6,8.18016182]
[1765783527195,0.9828,3131.7,3131.6,8.18016182]
[1765783527529,0.9828,3131.7,3131.6,7.59968653]
[1765783528022,0.4925,3131.7,3131.6,8.38536061]
[1765783528525,0.002,3131.7,3131.6,8.38536061]
[1765783528723,0.002,3131.7,3131.6,8.40776061]
[1765783529334,0.002,3131.7,3131.6,8.43016061]
[1765783529925,0.002,3131.7,3131.6,8.40776061]
[1765783530231,0.002,3131.7,3131.6,8.43016061]
[1765783532445,0.002,3131.7,3131.6,8.40776061]
[1765783535149,0.4989,3131.7,3131.6,8.38536061]
[1765783535615,0.4989,3131.7,3131.6,7.59968653]
[1765783535820,0.9664,3131.7,3131.6,3.19325584]
[1765783537323,0.9664,3131.7,3131.4,3.19436786]
[1765783537324,0.9664,3131.7,3131.5,0.58047529]
[1765783537680,0.4675,3131.6,3131.5,0.58047529]
[1765783537849,0.97399155,3131.6,3131.4,3.19436786]
[1765783538026,0.4969,3131.5,3131.4,3.19436786]
[1765783538352,0.9644,3131.5,3131.4,3.19436786]
[1765783538542,0.4969,3131.5,3131.4,3.19436786]
[1765783538918,0.9644,3131.5,3131.4,3.19436786]
[1765783539333,0.9644,3131.5,3131.4,0.001]
[1765783553877,0.002,3131.6,3131.4,0.0234]
[1765783554063,0.002,3131.6,3131.5,0.0224]
[1765783554479,0.002,3131.6,3131.4,0.001]
[1765783555880,0.4695,3131.6,3131.4,0.001]
[1765783557259,0.002,3131.6,3131.4,0.001]
[1765783561993,0.95659155,3131.5,3131.4,0.001]
[1765783563182,0.64559091,3131.5,3131.4,0.001]
[1765783565598,0.63599936,3131.5,3131.4,0.001]
[1765783568590,0.63799936,3131.5,3131.4,0.001]
[1765783573607,0.002,3131.5,3131.4,0.3344]
[1765783575102,0.002,3131.5,3131.4,0.001]
[1765783575508,0.4741,3131.5,3131.4,0.001]
[1765783579209,0.949,3131.5,3131.4,0.001]
[1765783581611,4.64635781,3131.5,3131.4,0.001]
[1765783581809,5.43488458,3131.5,3131.4,0.001]
[1765783583788,6.01535987,3131.5,3131.4,0.001]
[1765783583987,36.01535987,3131.5,3131.4,0.001]
[1765783584908,0.002,3131.5,3131.4,4.74170625]
[1765783585082,0.002,3131.5,3131.4,5.30309895]
[1765783585285,0.002,3131.5,3131.4,4.74170625]
[1765783585688,0.002,3131.5,3131.4,3.86125979]
[1765783587723,0.4914,3131.5,3131.4,0.001]
[1765783588016,0.4914,3131.5,3131.4,3.19445979]
[1765783588514,0.4914,3131.5,3131.4,0.001]
[1765783589213,0.9454,3131.5,3131.4,0.001]
[1765783589824,22.01292581,3131.5,3131.4,0.001]
[1765783590033,24.58540164,3131.5,3131.4,0.001]
[1765783590887,16.29253164,3131.5,3131.4,0.001]
[1765783591184,10.31418364,3131.5,3131.4,0.001]
[1765783591628,10.89465893,3131.5,3131.4,0.001]
[1765783594625,37.69721293,3131.5,3131.4,0.001]
[1765783595620,37.82513085,3131.5,3131.4,0.001]
[1765783596505,7.82513085,3131.5,3131.4,0.001]
[1765783596714,37.82513085,3131.5,3131.4,0.001]
[1765783599605,7.82513085,3131.5,3131.4,0.001]
[1765783599819,37.82513085,3131.5,3131.4,0.001]
[1765783600195,44.15413085,3131.5,3131.4,0.001]
[1765783602035,30.20690485,3131.5,3131.4,0.001]
[1765783602701,38.04242785,3131.5,3131.4,0.001]
[1765783603629,35.33934085,3131.5,3131.4,0.001]
[1765783603830,44.15413085,3131.5,3131.4,0.001]
[1765783604716,32.26786085,3131.5,3131.4,0.001]
[1765783604922,29.40876485,3131.5,3131.4,0.001]
[1765783605730,44.15413085,3131.5,3131.4,0.001]
[1765783606627,14.15413085,3131.5,3131.4,0.001]
[1765783606833,44.15413085,3131.5,3131.4,0.001]
[1765783613033,14.15413085,3131.5,3131.4,0.001]
[1765783613241,44.15413085,3131.5,3131.4,0.001]
[1765783615339,16.20152993,3131.5,3131.4,0.001]
[1765783615543,16.70652993,3131.5,3131.4,0.001]
[1765783616250,34.16138793,3131.5,3131.4,0.001]
[1765783617236,44.12570893,3131.5,3131.4,0.001]
[1765783617453,44.26113393,3131.5,3131.4,0.001]
[1765783618235,44.53121293,3131.5,3131.4,0.001]
[1765783618452,44.65913085,3131.5,3131.4,0.001]
[1765783621341,14.65913085,3131.5,3131.4,0.001]
[1765783621658,44.65913085,3131.5,3131.4,0.001]
[1765783622342,14.65913085,3131.5,3131.4,0.001]
[1765783622562,44.65913085,3131.5,3131.4,0.001]
[1765783627658,44.53121293,3131.5,3131.4,0.001]
[1765783629656,14.53121293,3131.5,3131.4,0.001]
[1765783629827,44.53121293,3131.5,3131.4,0.001]
[1765783632555,27.35091093,3131.5,3131.4,0.001]
[1765783632771,40.07342593,3131.5,3131.4,0.001]
[1765783632961,40.25848693,3131.5,3131.4,0.001]
[1765783633841,44.55241293,3131.5,3131.4,0.001]
[1765783634660,44.04741293,3131.5,3131.4,0.001]
[1765783634848,44.55141293,3131.5,3131.4,0.001]
[1765783637438,48.96221589,3131.5,3131.4,0.001]
[1765783638071,18.96221589,3131.5,3131.4,0.001]
[1765783638238,48.96221589,3131.5,3131.4,0.001]
[1765783642377,18.96221589,3131.5,3131.4,0.001]
[1765783642581,48.96221589,3131.5,3131.4,0.001]
[1765783649184,48.48701589,3131.5,3131.4,0.001]
[1765783650385,23.18340089,3131.5,3131.4,0.3344]
[1765783650580,47.99761589,3131.5,3131.4,0.3344]
[1765783651788,17.99761589,3131.5,3131.4,0.3344]
[1765783651980,47.99761589,3131.5,3131.4,0.3344]
[1765783653795,17.99761589,3131.5,3131.4,0.3344]
[1765783653966,47.99761589,3131.5,3131.4,0.3344]
[1765783654169,48.47491589,3131.5,3131.4,0.001]
[1765783654695,48.47491589,3131.5,3131.4,0.3344]
[1765783654696,12.54370481,3131.5,3131.4,0.3344]
[1765783654895,10.02835781,3131.5,3131.4,0.6678]
[1765783655098,10.6088331,3131.5,3131.4,0.6678]
[1765783655474,13.8064821,3131.5,3131.4,0.6678]
[1765783657195,13.8064821,3131.5,3131.4,0.3344]
[1765783658493,13.8064821,3131.5,3131.4,0.6678]
[1765783658797,10.6088331,3131.5,3131.4,0.6678]
[1765783659169,12.7045411,3131.5,3131.4,0.6678]
[1765783659370,13.7123361,3131.5,3131.4,0.6678]
[1765783661402,13.2083361,3131.5,3131.4,0.6678]
[1765783661609,13.7123361,3131.5,3131.4,0.6678]
[1765783664101,13.7123361,3131.5,3131.4,0.3344]
[1765783665905,13.7123361,3131.5,3131.4,0.6678]
[1765783666286,10.6088331,3131.5,3131.4,0.6678]
[1765783666611,12.7038391,3131.5,3131.4,0.6678]
[1765783666788,10.6088331,3131.5,3131.4,0.6678]
[1765783666991,16.4548801,3131.5,3131.4,0.6678]
[1765783667505,10.6088331,3131.5,3131.4,0.6678]
[1765783667710,12.7761871,3131.5,3131.4,0.6678]
[1765783667891,10.6088331,3131.5,3131.4,0.6678]
[1765783668391,12.7761871,3131.5,3131.4,0.6678]
[1765783668710,12.7761871,3131.5,3131.4,0.3344]
[1765783668889,12.7761871,3131.5,3131.4,0.001]
[1765783668890,14.37448906,3131.5,3131.4,0.001]
[1765783669093,14.85178906,3131.5,3131.4,0.001]
[1765783669615,14.37448906,3131.5,3131.4,0.001]
[1765783669800,12.7761871,3131.5,3131.4,0.3344]
[1765783676012,10.6088331,3131.5,3131.4,0.6678]
[1765783676394,6.91147529,3131.5,3131.4,0.6678]
[1765783676713,10.6088331,3131.5,3131.4,0.6678]
[1765783677086,6.835,3131.5,3131.4,0.6678]
[1765783677506,10.02835781,3131.5,3131.4,0.6678]
[1765783678017,10.02835781,3131.5,3131.4,0.3344]
[1765783678589,10.02835781,3131.5,3131.4,0.6678]
[1765783682995,10.02835781,3131.5,3131.4,0.3344]
[1765783683916,10.02835781,3131.5,3131.4,0.6678]
[1765783684415,25.22036004,3131.5,3131.4,0.001]
[1765783684821,24.74706004,3131.5,3131.4,0.001]
[1765783685403,28.94477004,3131.5,3131.4,0.001]
[1765783685606,28.19356404,3131.5,3131.4,0.001]
[1765783685805,27.86096804,3131.5,3131.4,0.001]
[1765783686319,17.80753504,3131.5,3131.4,0.001]
[1765783686627,11.93234404,3131.5,3131.4,0.3344]
[1765783686922,14.87242404,3131.5,3131.4,0.3344]
[1765783687427,15.73904404,3131.5,3131.4,0.3344]
[1765783688529,15.27578404,3131.5,3131.4,0.3344]
[1765783689430,11.93234404,3131.5,3131.4,0.3344]
[1765783689927,11.93234404,3131.5,3131.4,0.6678]
[1765783690131,10.6088331,3131.5,3131.4,0.6678]
[1765783692128,10.6088331,3131.5,3131.4,0.3344]
[1765783692304,11.0695331,3131.5,3131.4,0.001]
[1765783693228,10.6088331,3131.5,3131.4,0.001]
[1765783693431,10.6088331,3131.5,3131.4,0.3344]
[1765783704945,10.6088331,3131.5,3130.5,0.001]
[1765783704946,0.00959155,3130.7,3130.5,0.001]
[1765783705243,8.81793229,3130.6,3130.5,0.001]
[1765783705445,9.29123229,3130.6,3130.5,0.001]
[1765783705644,10.22131467,3130.6,3130.5,0.001]
[1765783705835,10.38901467,3130.6,3130.5,0.001]
[1765783706018,21.35415867,3130.6,3130.5,0.001]
[1765783706420,17.56434667,3130.6,3130.5,0.001]
[1765783706619,6.83293467,3130.6,3130.5,0.001]
[1765783706845,10.34971967,3130.6,3130.5,0.3344]
[1765783707150,14.99657652,3130.6,3130.5,0.001]
[1765783708350,20.82765052,3130.6,3130.5,0.001]
[1765783708536,7.94123852,3130.6,3130.5,0.001]
[1765783708738,5.37653352,3130.6,3130.5,0.3344]
[1765783710025,11.70553352,3130.6,3130.5,0.001]
[1765783710749,12.17313352,3130.6,3130.5,0.001]
[1765783712052,11.70553352,3130.6,3130.5,0.3344]
[1765783713456,10.77545114,3130.6,3130.5,0.6678]
[1765783714179,10.77545114,3130.6,3130.5,0.3344]
[1765783714753,11.24305114,3130.6,3130.5,0.001]
[1765783715063,10.77545114,3130.6,3130.5,0.3344]
[1765783715267,10.77545114,3130.6,3130.5,0.6678]
[1765783716164,10.77545114,3130.6,3130.5,0.3344]
[1765783720967,10.27145114,3130.6,3130.5,0.3344]
[1765783721176,10.77545114,3130.6,3130.5,0.3344]
[1765783724167,17.86946259,3130.6,3130.5,0.001]
[1765783727671,18.27496659,3130.6,3130.5,0.001]
[1765783727880,43.51927559,3130.6,3130.5,0.001]
[1765783729145,32.03484059,3130.6,3130.5,0.001]
[1765783729850,37.36837959,3130.6,3130.5,0.001]
[1765783731877,43.51927559,3130.6,3130.5,0.001]
[1765783734880,13.51927559,3130.6,3130.5,0.001]
[1765783735085,43.51927559,3130.6,3130.5,0.001]
[1765783736589,38.25356559,3130.6,3130.5,0.001]
[1765783736961,39.37956559,3130.6,3130.5,0.001]
[1765783738957,43.51927559,3130.6,3130.5,0.001]
[1765783739990,13.51927559,3130.6,3130.5,0.001]
[1765783740290,43.51927559,3130.6,3130.5,0.001]
[1765783746096,19.71962159,3130.6,3130.5,0.001]
[1765783746298,18.13284659,3130.6,3130.5,0.001]
[1765783746478,18.53835059,3130.6,3130.5,0.001]
[1765783747162,13.07077559,3130.6,3130.5,0.001]
[1765783747488,31.27958359,3130.6,3130.5,0.001]
[1765783747677,30.82158359,3130.6,3130.5,0.001]
[1765783747871,23.19949959,3130.6,3130.5,0.001]
[1765783748267,25.44552959,3130.6,3130.5,0.001]
[1765783748469,25.12578759,3130.6,3130.5,0.001]
[1765783748669,24.95808759,3130.6,3130.5,0.001]
[1765783749396,43.37727559,3130.6,3130.5,0.001]
[1765783749984,43.54497559,3130.6,3130.5,0.001]
[1765783751504,43.37727559,3130.6,3130.5,0.001]
[1765783751669,43.54497559,3130.6,3130.5,0.001]
[1765783751868,33.95713159,3130.6,3130.5,0.001]
[1765783752072,27.68966359,3130.6,3130.5,0.3344]
[1765783752296,27.52196359,3130.6,3130.5,0.3344]
[1765783752504,29.01386359,3130.6,3130.5,0.001]
[1765783753298,26.25761959,3130.6,3130.5,0.001]
[1765783753598,24.42516359,3130.6,3130.5,0.001]
[1765783754394,27.37841059,3130.6,3130.5,0.001]
[1765783754603,25.32000059,3130.6,3130.5,0.001]
[1765783754795,22.59409659,3130.6,3130.5,0.001]
[1765783755001,23.09809659,3130.6,3130.5,0.001]
[1765783756600,12.90307559,3130.6,3130.5,0.001]